[Event "British Championship 2024"]
[Site "Hull"]
[Date "2024.07.31"]
[Round "1.38"]
[White "Hobson, Kenneth"]
[Black "Salmons, Calum"]
[Result "1/2-1/2"]
[Annotator "RC"]
[ECO "B51"]
[WhiteElo "2227"]
[BlackElo "1999"]
[PlyCount "152"]
[EventDate "2024.07.31"]
[EventCountry "GBR"]
[SourceTitle "playchess.com"]
[Source "ChessBase"]
[SourceQuality "1"]
[TimeControl "40/5400+30:1800+30"]

1. e4 {[%emt 0:00:27]} c5 {[%emt 0:00:10]} 2. Nf3 {[%emt 0:01:26]} d6 {[%emt 0:00:25]} 3. Bb5+ {[%emt 0:01:12]} Nd7 {[%emt 0:00:57]} 4. a4 {[%emt 0:01:27]} Ngf6 {[%emt 0:01:45]} 5. Nc3 {[%emt 0:01:07]} g6 {[%emt 0:00:41]} 6. a5 {[%emt 0:01:19]} Bg7 {[%emt 0:01:05]} 7. O-O {[%emt 0:02:29]} O-O {[%emt 0:01:02]} 8. Re1 {[%emt 0:03:47]} a6 {[%emt 0:00:22]} 9. Bc4 {[%emt 0:02:41]} e5 {[%emt 0:07:00]} 10. d3 {[%emt 0:01:27]} h6 {[%emt 0:05:05]} 11. h3 {[%emt 0:02:49]} Nb8 {[%emt 0:03:03]} 12. Nd5 {[%emt 0:11:44]} Nc6 {[%emt 0:16:14]} 13. Be3 {[%emt 0:04:54]} Kh7 {[%emt 0:02:15]} 14. Nb6 {[%emt 0:04:40]} Rb8 {[%emt 0:01:16]} 15. Nxc8 {[%emt 0:01:54]} Rxc8 {[%emt 0:01:06]} 16. Qd2 {[%emt 0:02:40]} Ng8 {[%emt 0:08:06]} 17. Nh2 {[%emt 0:03:30]} f5 {[%emt 0:05:11]} 18. f3 {[%emt 0:03:53]} f4 {[%emt 0:06:09]} 19. Bf2 {[%emt 0:00:06]} g5 {[%emt 0:00:43]} 20. Be6 {[%emt 0:05:36]} Rb8 {[%emt 0:01:20]} 21. Reb1 {[%emt 0:02:20]} h5 {[%emt 0:03:59]} 22. c3 {[%emt 0:01:37]} Nh6 {[%emt 0:10:13]} 23. b4 {[%emt 0:02:25]} Rf6 {[%emt 0:00:24]} 24. Bb3 {[%emt 0:02:23]} cxb4 {[%emt 0:00:35]} 25. cxb4 {[%emt 0:00:45]} Rg6 {[%emt 0:01:11]} 26. Bd1 {[%emt 0:00:24]} d5 {[%emt 0:01:09]} 27. exd5 {[%emt 0:04:13]} Qxd5 {[%emt 0:00:13]} 28. Qe1 {[%emt 0:05:31]} Qxd3 {[%emt 0:06:47]} 29. Rb3 {[%emt 0:04:30]} Qc4 {[%emt 0:01:15]} 30. Rc3 {[%emt 0:01:10]} Qxb4 {[%emt 0:01:07]} 31. Ra4 {[%emt 0:00:51]} Qf8 {[%emt 0:03:03]} 32. Bc5 {[%emt 0:02:23]} Qf7 {[%emt 0:00:22]} 33. Bb3 {[%emt 0:00:37]} Qd7 {[%emt 0:00:39]} 34. Bc2 {[%emt 0:00:57]} Nf5 {[%emt 0:00:01]} 35. Qe4 {[%emt 0:02:17]} Rf6 {[%emt 0:01:35]} 36. Rd3 {[%emt 0:00:49]} Qf7 {[%emt 0:02:01]} 37. Ra1 {[%emt 0:05:24]} Bf8 {[%emt 0:01:59]} 38. Bf2 {[%emt 0:02:20]} Kh8 {[%emt 0:01:04]} 39. Rad1 {[%emt 0:02:26]} Ncd4 {[%emt 0:02:30]} 40. Bb1 {[%emt 0:02:56]} Bd6 {[%emt 0:02:23]} 41. Nf1 {[%emt 0:31:14]} b5 {[%emt 0:33:52]} 42. axb6 {[%emt 0:03:39]} Rxb6 {[%emt 0:00:00]} 43. Rc3 {[%emt 0:00:00]} Qb7 {[%emt 0:00:00]} 44. Rxd4 {[%emt 0:00:00]} exd4 {[%emt 0:00:00]} 45. Qe8+ {[%emt 0:00:00]} Bf8 {[%emt 0:00:00]} 46. Bxf5 {[%emt 0:00:00]} dxc3 {[%emt 0:00:00]} 47. Qxh5+ {[%emt 0:00:00]} Bh6 {[%emt 0:00:00]} 48. Bd4 {[%emt 0:00:00]} Qe7 {[%emt 0:00:00]} 49. Qxh6+ {[%emt 0:00:00]} Kg8 {[%emt 0:00:00]} 50. Qxg5+ {[%emt 0:00:00]} Qg7 {[%emt 0:00:00]} 51. Qxg7+ {[%emt 0:00:00]} Kxg7 {[%emt 0:00:00]} 52. Bxc3 {[%emt 0:00:00]} Kf7 {[%emt 0:00:04]} 53. Bxf6 {[%emt 0:00:00]} Kxf6 {[%emt 0:00:01]} 54. g4 {[%emt 0:00:00]} Rb2 {[%emt 0:01:56]} 55. h4 {[%emt 0:00:13]} a5 {[%emt 0:00:13]} 56. Bd7 {[%emt 0:01:30]} Ke7 {[%emt 0:01:18]} 57. Bc6 {[%emt 0:01:13]} Kd6 {[%emt 0:00:37]} 58. Be8 {[%emt 0:00:58]} Ke7 {[%emt 0:00:39]} 59. Ba4 {[%emt 0:03:01]} Ra2 {[%emt 0:00:02]} 60. Bb3 {[%emt 0:01:13]} Rb2 {[%emt 0:01:57]} 61. Bd5 {[%emt 0:01:02]} a4 {[%emt 0:00:21]} 62. g5 {[%emt 0:01:11]} a3 {[%emt 0:00:14]} 63. Nh2 {[%emt 0:00:38]} a2 {[%emt 0:00:34]} 64. Bxa2 {[%emt 0:00:03]} Rxa2 {[%emt 0:00:01]} 65. Ng4 {[%emt 0:00:18]} Kf7 {[%emt 0:00:33]} 66. Ne5+ {[%emt 0:00:23]} Ke6 {[%emt 0:00:20]} 67. Ng6 {[%emt 0:00:42]} Kf5 {[%emt 0:00:19]} 68. Ne7+ {[%emt 0:00:14]} Ke6 {[%emt 0:00:10]} 69. Ng8 {[%emt 0:01:01]} Kf7 {[%emt 0:01:53]} 70. Nf6 {[%emt 0:00:21]} Kg6 {[%emt 0:00:54]} 71. Kh1 {[%emt 0:00:55]} Rf2 {[%emt 0:01:01]} 72. Ng4 {[%emt 0:00:35]} Ra2 {[%emt 0:00:02]} 73. Nf6 {[%emt 0:00:21]} Rf2 {[%emt 0:01:00]} 74. Ng4 {[%emt 0:00:22]} Ra2 {[%emt 0:00:29]} 75. Nf6 {[%emt 0:01:27]} Rf2 {[%emt 0:03:05]} 76. h5+ Kf5 {[%emt 0:00:30]} 1/2-1/2

[Event "British Championship 2024"]
[Site "Hull"]
[Date "2024.07.31"]
[Round "1.39"]
[White "Merriman, James"]
[Black "Kalavannan, Koby"]
[Result "0-1"]
[Annotator "RC"]
[ECO "A57"]
[WhiteElo "1974"]
[BlackElo "2265"]
[PlyCount "152"]
[EventDate "2024.07.31"]
[EventCountry "GBR"]
[SourceTitle "playchess.com"]
[Source "ChessBase"]
[SourceQuality "1"]
[TimeControl "40/5400+30:1800+30"]

1. d4 {[%emt 0:00:11]} Nf6 {[%emt 0:00:44]} 2. c4 {[%emt 0:00:06]} c5 {[%emt 0:00:12]} 3. d5 {[%emt 0:00:34]} b5 {[%emt 0:00:12]} 4. a4 {[%emt 0:01:11]} Qa5+ {[%emt 0:00:14]} 5. Bd2 {[%emt 0:01:55]} b4 {[%emt 0:00:08]} 6. Qc2 {[%emt 0:01:48]} g6 {[%emt 0:00:15]} 7. e4 {[%emt 0:00:18]} d6 {[%emt 0:00:15]} 8. Bd3 {[%emt 0:01:47]} Bg7 {[%emt 0:00:17]} 9. f4 {[%emt 0:03:26]} O-O {[%emt 0:00:53]} 10. Nf3 {[%emt 0:00:38]} e6 {[%emt 0:00:27]} 11. O-O {[%emt 0:00:36]} exd5 {[%emt 0:00:18]} 12. exd5 {[%emt 0:00:02]} Nbd7 {[%emt 0:00:14]} 13. f5 {[%emt 0:09:41]} Qd8 {[%emt 0:00:37]} 14. Bg5 {[%emt 0:12:23]} h6 {[%emt 0:00:46]} 15. Bf4 {[%emt 0:04:56]} Ng4 {[%emt 0:00:22]} 16. Re1 {[%emt 0:10:06]} Nde5 {[%emt 0:09:53]} 17. Bxe5 {[%emt 0:10:05]} Nxe5 {[%emt 0:01:02]} 18. Nxe5 {[%emt 0:00:09]} Bxe5 {[%emt 0:00:08]} 19. Nd2 {[%emt 0:01:08]} b3 {[%emt 0:21:30]} 20. Qxb3 {[%emt 0:06:21]} Bd7 {[%emt 0:04:00]} 21. Qc2 {[%emt 0:02:37]} Rb8 {[%emt 0:02:06]} 22. Rab1 {[%emt 0:00:17]} Qf6 {[%emt 0:14:36]} 23. Nf3 {[%emt 0:06:41]} Bxb2 {[%emt 0:01:18]} 24. fxg6 {[%emt 0:00:33]} fxg6 {[%emt 0:01:04]} 25. Bxg6 {[%emt 0:00:32]} Rb4 {[%emt 0:02:45]} 26. Qe4 {[%emt 0:09:49]} Kg7 {[%emt 0:02:38]} 27. Bh5 {[%emt 0:03:34]} Bf5 {[%emt 0:11:26]} 28. Qe7+ {[%emt 0:00:09]} Qxe7 {[%emt 0:01:25]} 29. Rxe7+ {[%emt 0:00:02]} Kg8 {[%emt 0:00:14]} 30. Rbe1 {[%emt 0:01:27]} Rxa4 {[%emt 0:00:43]} 31. Rb7 {[%emt 0:02:30]} Bf6 {[%emt 0:10:43]} 32. Re8 {[%emt 0:00:50]} Rxe8 {[%emt 0:06:02]} 33. Bxe8 {[%emt 0:00:05]} Ra1+ {[%emt 0:00:24]} 34. Kf2 {[%emt 0:00:11]} Bd3 {[%emt 0:01:34]} 35. Bf7+ {[%emt 0:04:11]} Kh8 {[%emt 0:00:32]} 36. Be6 {[%emt 0:00:57]} a5 {[%emt 0:01:15]} 37. Rf7 {[%emt 0:02:28]} Bg7 {[%emt 0:01:24]} 38. Rd7 {[%emt 0:00:06]} Bf6 {[%emt 0:01:36]} 39. Rf7 {[%emt 0:00:06]} Bc3 {[%emt 0:03:54]} 40. Rf8+ {[%emt 0:02:55]} Kh7 {[%emt 0:00:44]} 41. Ke3 {[%emt 0:15:56]} Bxc4 {[%emt 0:02:27]} 42. Rf7+ {[%emt 0:03:24]} Bg7 {[%emt 0:01:31]} 43. Nh4 {[%emt 0:05:03]} Re1+ {[%emt 0:03:20]} 44. Kd2 {[%emt 0:00:03]} Re2+ {[%emt 0:00:20]} 45. Kd1 {[%emt 0:00:04]} h5 {[%emt 0:05:59]} 46. Bf5+ {[%emt 0:05:03]} Kg8 {[%emt 0:01:59]} 47. Be6 {[%emt 0:00:05]} Rxe6 {[%emt 0:03:39]} 48. dxe6 {[%emt 0:00:02]} Bxe6 {[%emt 0:00:01]} 49. Ra7 {[%emt 0:00:43]} a4 {[%emt 0:00:23]} 50. Kc1 {[%emt 0:01:59]} Bb3 {[%emt 0:00:27]} 51. Nf5 {[%emt 0:00:05]} Bf8 {[%emt 0:02:23]} 52. Ne7+ {[%emt 0:00:56]} Kf7 {[%emt 0:01:22]} 53. Nd5+ {[%emt 0:00:05]} Ke6 {[%emt 0:00:30]} 54. Nc3 {[%emt 0:00:05]} Bh6+ {[%emt 0:06:10]} 55. Kb1 {[%emt 0:00:04]} Bf4 {[%emt 0:00:51]} 56. g3 {[%emt 0:00:48]} Be5 {[%emt 0:01:11]} 57. Nxa4 {[%emt 0:00:14]} c4 {[%emt 0:01:48]} 58. Nb2 {[%emt 0:01:19]} d5 {[%emt 0:00:25]} 59. Rh7 {[%emt 0:04:41]} d4 {[%emt 0:00:05]} 60. Rxh5 {[%emt 0:01:19]} d3 {[%emt 0:00:01]} 61. Rh6+ {[%emt 0:01:03]} Kd5 {[%emt 0:03:24]} 62. Rh7 {[%emt 0:00:31]} Ke6 {[%emt 0:02:02]} 63. Rh6+ {[%emt 0:00:26]} Ke7 {[%emt 0:00:07]} 64. Rh7+ {[%emt 0:00:29]} Kd6 {[%emt 0:00:23]} 65. Rh6+ {[%emt 0:00:28]} Kc5 {[%emt 0:00:07]} 66. Rh5 {[%emt 0:00:27]} Kd4 {[%emt 0:00:01]} 67. Kc1 {[%emt 0:00:19]} Bd6 {[%emt 0:00:01]} 68. Rh4+ {[%emt 0:00:34]} Kc3 {[%emt 0:00:05]} 69. Nxc4 {[%emt 0:00:37]} Bxc4 {[%emt 0:00:15]} 70. Rxc4+ {[%emt 0:00:04]} Kxc4 {[%emt 0:00:06]} 71. Kd2 {[%emt 0:00:14]} Bb4+ {[%emt 0:00:18]} 72. Kd1 {[%emt 0:00:05]} Kc3 {[%emt 0:00:21]} 73. h4 {[%emt 0:00:08]} d2 {[%emt 0:00:28]} 74. g4 {[%emt 0:00:22]} Be7 {[%emt 0:00:17]} 75. g5 {[%emt 0:00:12]} Bd8 {[%emt 0:00:04]} 76. g6 {[%emt 0:00:15]} Bf6 {[%emt 0:00:04]} 0-1

[Event "British Championship 2024"]
[Site "Hull"]
[Date "2024.07.31"]
[Round "1.40"]
[White "Merriman, John"]
[Black "Sachdeva, Ronit"]
[Result "1/2-1/2"]
[Annotator "RC"]
[ECO "D10"]
[WhiteElo "2251"]
[BlackElo "1907"]
[PlyCount "65"]
[EventDate "2024.07.31"]
[EventCountry "GBR"]
[SourceTitle "playchess.com"]
[Source "ChessBase"]
[SourceQuality "1"]
[TimeControl "40/5400+30:1800+30"]

1. d4 {[%emt 0:00:11]} d5 {[%emt 0:00:04]} 2. c4 {[%emt 0:00:05]} c6 {[%emt 0:00:02]} 3. Nc3 {[%emt 0:00:09]} Nf6 {[%emt 0:00:03]} 4. e3 {[%emt 0:00:05]} Bf5 {[%emt 0:00:03]} 5. cxd5 {[%emt 0:03:49]} cxd5 {[%emt 0:00:06]} 6. Qb3 {[%emt 0:00:04]} Nc6 {[%emt 0:00:03]} 7. Qxb7 {[%emt 0:01:18]} Bd7 {[%emt 0:00:06]} 8. Qb3 {[%emt 0:03:55]} Rb8 {[%emt 0:00:08]} 9. Qd1 {[%emt 0:00:39]} e5 {[%emt 0:00:32]} 10. dxe5 {[%emt 0:06:44]} Nxe5 {[%emt 0:00:05]} 11. Be2 {[%emt 0:00:28]} Bd6 {[%emt 0:02:37]} 12. Nf3 {[%emt 0:02:19]} Nxf3+ {[%emt 0:06:35]} 13. Bxf3 {[%emt 0:01:26]} Qc7 {[%emt 0:01:51]} 14. h3 {[%emt 0:10:44]} O-O {[%emt 0:00:53]} 15. O-O {[%emt 0:05:03]} Rfd8 {[%emt 0:03:32]} 16. Qd3 {[%emt 0:06:03]} Bh2+ {[%emt 0:09:11]} 17. Kh1 {[%emt 0:00:07]} Be5 {[%emt 0:00:20]} 18. a4 {[%emt 0:18:43]} Qc8 {[%emt 0:09:06]} 19. Nb5 {[%emt 0:11:59]} Bf5 {[%emt 0:11:45]} 20. Qe2 {[%emt 0:01:17]} a6 {[%emt 0:04:22]} 21. Nd4 {[%emt 0:00:20]} Bxh3 {[%emt 0:07:50]} 22. Ra3 {[%emt 0:04:24]} Bd7 {[%emt 0:10:57]} 23. Rc3 {[%emt 0:04:16]} Qb7 {[%emt 0:00:50]} 24. Qc2 {[%emt 0:01:44]} Rdc8 {[%emt 0:04:26]} 25. Kg1 {[%emt 0:02:39]} Bxd4 {[%emt 0:05:39]} 26. exd4 {[%emt 0:00:06]} Rxc3 {[%emt 0:00:29]} 27. bxc3 {[%emt 0:00:50]} Qb3 {[%emt 0:02:05]} 28. Bd1 {[%emt 0:02:10]} Bxa4 {[%emt 0:04:06]} 29. Bf4 {[%emt 0:02:29]} Rb7 {[%emt 0:06:11]} 30. Qf5 {[%emt 0:04:19]} Bd7 {[%emt 0:00:41]} 31. Qxd7 {[%emt 0:02:15]} Nxd7 {[%emt 0:00:12]} 32. Bxb3 {[%emt 0:00:01]} Rxb3 {[%emt 0:00:06]} 33. Ra1 {[%emt 0:00:07]} 1/2-1/2

[Event "British Championship 2024"]
[Site "Hull"]
[Date "2024.07.31"]
[Round "1.42"]
[White "Toma, Katarzyna"]
[Black "Larkin, Benjamin"]
[Result "1-0"]
[Annotator "RC"]
[ECO "B53"]
[WhiteElo "2220"]
[BlackElo "1952"]
[PlyCount "87"]
[EventDate "2024.07.31"]
[EventCountry "GBR"]
[SourceTitle "playchess.com"]
[Source "ChessBase"]
[SourceQuality "1"]
[TimeControl "40/5400+30:1800+30"]

1. e4 {[%emt 0:00:03]} c5 {[%emt 0:00:14]} 2. Nf3 {[%emt 0:00:39]} d6 {[%emt 0:00:17]} 3. d4 {[%emt 0:00:33]} cxd4 {[%emt 0:00:08]} 4. Qxd4 {[%emt 0:00:35]} Nc6 {[%emt 0:00:39]} 5. Bb5 {[%emt 0:00:22]} Bd7 {[%emt 0:00:24]} 6. Qd3 {[%emt 0:00:07]} g6 {[%emt 0:00:31]} 7. c4 {[%emt 0:00:14]} Bg7 {[%emt 0:00:09]} 8. Nc3 {[%emt 0:00:15]} Nf6 {[%emt 0:00:24]} 9. O-O {[%emt 0:00:28]} O-O {[%emt 0:00:23]} 10. h3 {[%emt 0:01:04]} a6 {[%emt 0:01:01]} 11. Bxc6 {[%emt 0:00:15]} Bxc6 {[%emt 0:00:39]} 12. Nd4 {[%emt 0:00:33]} Qb6 {[%emt 0:00:40]} 13. Nb3 {[%emt 0:25:02]} Nd7 {[%emt 0:06:03]} 14. Be3 {[%emt 0:06:58]} Qb4 {[%emt 0:00:29]} 15. f4 {[%emt 0:07:06]} b5 {[%emt 0:12:08]} 16. Nd5 {[%emt 0:10:16]} Bxd5 {[%emt 0:00:29]} 17. cxd5 {[%emt 0:00:05]} Bxb2 {[%emt 0:03:33]} 18. Rab1 {[%emt 0:00:12]} Bf6 {[%emt 0:12:50]} 19. Rfc1 {[%emt 0:01:34]} Rfc8 {[%emt 0:04:43]} 20. Rc6 {[%emt 0:07:26]} Rxc6 {[%emt 0:05:41]} 21. dxc6 {[%emt 0:00:05]} Nf8 {[%emt 0:00:12]} 22. Rc1 {[%emt 0:06:17]} Rc8 {[%emt 0:02:03]} 23. Nd4 {[%emt 0:12:23]} Bxd4 {[%emt 0:06:50]} 24. Bxd4 {[%emt 0:00:32]} Ne6 {[%emt 0:00:04]} 25. Be3 {[%emt 0:01:31]} Nc5 {[%emt 0:02:26]} 26. Bxc5 {[%emt 0:04:20]} dxc5 {[%emt 0:40:30]} 27. Qd7 {[%emt 0:00:31]} Qd4+ {[%emt 0:00:00]} 28. Qxd4 {[%emt 0:01:13]} cxd4 {[%emt 0:00:00]} 29. Kf2 {[%emt 0:00:21]} f6 {[%emt 0:00:00]} 30. e5 {[%emt 0:02:26]} Kf7 {[%emt 0:00:00]} 31. Ke2 {[%emt 0:00:19]} g5 {[%emt 0:00:00]} 32. g3 {[%emt 0:01:14]} gxf4 {[%emt 0:00:00]} 33. gxf4 {[%emt 0:00:04]} Ke6 {[%emt 0:00:00]} 34. Rc5 {[%emt 0:00:26]} Kf5 {[%emt 0:00:00]} 35. Kd3 {[%emt 0:01:58]} Kxf4 {[%emt 0:00:00]} 36. exf6 {[%emt 0:02:33]} exf6 {[%emt 0:00:00]} 37. Kxd4 {[%emt 0:00:06]} f5 {[%emt 0:00:00]} 38. c7 {[%emt 0:02:02]} Kg3 {[%emt 0:00:00]} 39. Rc3+ {[%emt 0:00:11]} Kf4 {[%emt 0:00:00]} 40. Kd5 {[%emt 0:00:38]} a5 {[%emt 0:00:00]} 41. Kd6 {[%emt 0:30:47]} b4 {[%emt 0:21:21]} 42. Rc5 {[%emt 0:00:18]} Kg3 {[%emt 0:00:00]} 43. Rxf5 {[%emt 0:00:00]} a4 {[%emt 0:00:00]} 44. Rb5 {[%emt 0:00:00]} 1-0

[Event "British Championship 2024"]
[Site "Hull"]
[Date "2024.07.31"]
[Round "3.1"]
[White "Lutsko, Artem"]
[Black "Howell, David W L"]
[Result "0-1"]
[Annotator "TA"]
[ECO "B15"]
[WhiteElo "2414"]
[BlackElo "2675"]
[PlyCount "82"]
[EventDate "2024.07.31"]
[EventCountry "GBR"]
[SourceTitle "playchess.com"]
[Source "ChessBase"]
[SourceQuality "1"]
[TimeControl "40/5400+30:1800+30"]

{[%evp 14,82,0,0,0,0,8,-1,4,11,30,5,20,13,0,17,19,15,41,29,47,37,36,10,62,-71,-79,-69,-64,-184,-112,-304,-268,-302,-297,-398,-409,-388,-409,-395,-389,-389,-374,-407,-413,-441,-389,-647,-664,-823,-802,-795,-799,-852,-722,-1928,-1812,-1838,-1813,-2045,-1277,-5110,-4500,-2497,-2425,-29970,-29971,-29949,-12850,-29996,-29997]} 1. e4 {[%emt 0:00:01]} c6 {[%emt 0:01:17]} 2. Nf3 {[%emt 0:00:38]} d5 {[%emt 0:00:36]} 3. Nc3 {[%emt 0:00:04]} dxe4 {[%emt 0:04:42]} 4. Nxe4 {[%emt 0:00:04]} Nf6 {[%emt 0:00:09]} 5. Nxf6+ {[%emt 0:00:59]} exf6 {[%emt 0:00:15]} 6. Bc4 {[%emt 0:01:10]} Bd6 {[%emt 0:00:23]} 7. O-O {[%emt 0:00:05]} O-O {[%emt 0:00:06]} 8. d4 {[%emt 0:00:03]} Bg4 {[%emt 0:15:57]} 9. h3 {[%emt 0:00:05]} Bh5 {[%emt 0:00:05]} 10. g4 {[%emt 0:01:05]} Bg6 {[%emt 0:00:25] The position is equal.} 11. Nh4 {[%emt 0:00:04]} Bc7 {[%emt 0:00:06]} 12. Nxg6 {[%emt 0:22:23]} hxg6 {[%emt 0:00:38]} 13. Kg2 $1 {[%emt 0:00:04]} Qd6 {[%emt 0:12:37]} 14. Rh1 {[%emt 0:00:13] Wards off Qh2+} Nd7 {[%emt 0:00:07]} 15. c3 {[%emt 0:05:38]} Rae8 {[%emt 0:21:40]} 16. Qf3 {[%emt 0:04:45]} Re7 {[%emt 0:01:51]} 17. a4 {[%emt 0:05:00]} Nb6 {[%emt 0:03:31]} 18. b3 {[%emt 0:04:36]} Qd7 {[%emt 0:00:23]} (18... Nxc4 $11 19. bxc4 Qd7) 19. a5 {[%emt 0:08:07]} (19. Bd3 $1 $14 {keeps the upper hand.}) 19... Nxc4 $17 {[%emt 0:06:05]} 20. bxc4 {[%emt 0:00:02]} Rfe8 {[%emt 0:00:25]} 21. Ba3 {[%emt 0:09:07]} (21. Bf4 $15) 21... Re2 {[%emt 0:02:24]} ({Black should play} 21... Re4 $19 {[%cal Of6f5]} 22. Bc1 f5 23. gxf5 gxf5) 22. Bc5 $2 {[%emt 0:00:53] White does not recover from this.} (22. Rhb1 $17) 22... b6 $19 {[%emt 0:07:38]} 23. axb6 {[%emt 0:00:05]} axb6 {[%emt 0:00:06]} 24. Bb4 {[%emt 0:00:05] [#]} R8e3 $1 {[%emt 0:01:20][%mdl 512]} 25. Qxe3 {[%emt 0:01:00]} Rxe3 {[%emt 0:00:07]} 26. fxe3 {[%emt 0:00:03] [#]} c5 $1 {[%emt 0:00:08][%mdl 512]} 27. Ba3 {[%emt 0:04:18]} Qe6 {[%emt 0:08:19][%csl LRc4,LRe3]} 28. Rhe1 {[%emt 0:17:16]} Qxc4 {[%emt 0:00:09]} 29. Kf3 {[%emt 0:01:36]} f5 {[%emt 0:02:32]} 30. Bb2 $2 {[%emt 0:06:22]} (30. dxc5 bxc5 (30... Qxc3 $2 31. cxb6 Bxb6 32. gxf5 $19) 31. Rg1) 30... Qd3 {[%emt 0:03:02]} 31. Re2 {[%emt 0:07:41] [#]} Bg3 $1 {[%emt 0:01:20][%mdl 512] Threatens to win with ...Bh4.} 32. gxf5 {[%emt 0:00:53]} (32. Rf1 Bh4) 32... gxf5 {[%emt 0:00:31]} 33. Rg1 {[%emt 0:00:01]} f4 {[%emt 0:01:32] aiming for ...f5.} 34. Bc1 {[%emt 0:01:56]} f5 {[%emt 0:00:56][%csl Gf5][%cal Rd3e4]} 35. Rxg3 {[%emt 0:00:02]} fxg3 {[%emt 0:00:25][%mdl 4096] Endgame. KQ-KRB} 36. Bd2 {[%emt 0:00:32] [#]} f4 $1 {[%emt 0:01:21] White must now prevent ...g5.} 37. h4 {[%emt 0:00:29]} (37. Be1 g2) 37... c4 {[%emt 0:02:26]} 38. Be1 {[%emt 0:00:54]} Kf7 {[%emt 0:00:15]} 39. d5 {[%emt 0:00:48]} Kf6 {[%emt 0:00:18]} 40. d6 {[%emt 0:00:42]} Kf5 {[%emt 0:00:34][%csl Gf5][%cal Rd3e4]} 41. Rd2 {[%emt 0:30:31]} Qf1+ {[%emt 0:30:57] Weighted Error Value: White=1.03/Black=0.33.  Loses game:     	White=1     	---        Mistake:       	White=3     	Black=2      Inaccurate:     	White=2     	Black=1      OK:         	White=10    	Black=9      Best:        	---       	Black=2      Strong:       	White=1     	---        Brilliant:      	---       	Black=1} 0-1

[Event "British Championship 2024"]
[Site "Hull"]
[Date "2024.07.31"]
[Round "3.2"]
[White "Golding, Alex"]
[Black "Jones, Gawain C B"]
[Result "0-1"]
[Annotator "RC"]
[ECO "C70"]
[WhiteElo "2296"]
[BlackElo "2633"]
[PlyCount "80"]
[EventDate "2024.07.31"]
[EventCountry "GBR"]
[SourceTitle "playchess.com"]
[Source "ChessBase"]
[SourceQuality "1"]
[TimeControl "40/5400+30:1800+30"]

1. e4 {[%emt 0:00:04]} e5 {[%emt 0:00:22]} 2. Nf3 {[%emt 0:00:05]} Nc6 {[%emt 0:00:07]} 3. Bb5 {[%emt 0:00:12]} a6 {[%emt 0:00:08]} 4. Ba4 {[%emt 0:00:12]} Bc5 {[%emt 0:00:44]} 5. O-O {[%emt 0:05:15]} Nge7 {[%emt 0:00:34]} 6. Nxe5 {[%emt 0:04:16]} Nxe5 {[%emt 0:00:07]} 7. d4 {[%emt 0:00:03]} b5 {[%emt 0:00:09]} 8. Bb3 {[%emt 0:00:07]} Bxd4 {[%emt 0:00:07]} 9. Qxd4 {[%emt 0:00:08]} d6 {[%emt 0:00:03]} 10. c3 {[%emt 0:02:46]} O-O {[%emt 0:02:59]} 11. f4 {[%emt 0:07:40]} Ng4 {[%emt 0:13:09]} 12. h3 {[%emt 0:00:29]} c5 {[%emt 0:06:04]} 13. Qd1 {[%emt 0:01:45]} Nf6 {[%emt 0:00:06]} 14. Nd2 {[%emt 0:01:39]} Bb7 {[%emt 0:07:56]} 15. Bc2 {[%emt 0:00:27]} Ng6 {[%emt 0:02:33]} 16. f5 {[%emt 0:06:40]} Ne5 {[%emt 0:00:29]} 17. Re1 {[%emt 0:03:33]} d5 {[%emt 0:05:57]} 18. exd5 {[%emt 0:04:32]} Qxd5 {[%emt 0:00:51]} 19. Ne4 {[%emt 0:00:20]} Nxe4 {[%emt 0:01:31]} 20. Qxd5 {[%emt 0:00:06]} Bxd5 {[%emt 0:00:07]} 21. Bf4 {[%emt 0:01:56]} Nc4 {[%emt 0:05:33]} 22. Bxe4 {[%emt 0:05:08]} Bxe4 {[%emt 0:00:25]} 23. Rxe4 {[%emt 0:00:05]} Nxb2 {[%emt 0:00:38]} 24. Bd6 {[%emt 0:00:37]} Rfe8 {[%emt 0:03:39]} 25. Rg4 {[%emt 0:02:46]} Na4 {[%emt 0:08:29]} 26. f6 {[%emt 0:00:31]} g6 {[%emt 0:00:11]} 27. Be7 {[%emt 0:08:54]} Nxc3 {[%emt 0:01:24]} 28. Bxc5 {[%emt 0:00:09]} h5 {[%emt 0:01:38]} 29. Rb4 {[%emt 0:00:46]} Nd5 {[%emt 0:05:45]} 30. Rb2 {[%emt 0:02:53]} Nxf6 {[%emt 0:00:30]} 31. a4 {[%emt 0:00:35]} Ne4 {[%emt 0:01:02]} 32. Ba3 {[%emt 0:02:45]} bxa4 {[%emt 0:03:38]} 33. Rb7 {[%emt 0:00:42]} Ng3 {[%emt 0:07:40]} 34. Kf2 {[%emt 0:06:12]} h4 {[%emt 0:01:39]} 35. Rb4 {[%emt 0:02:32]} Re2+ {[%emt 0:02:39]} 36. Kf3 {[%emt 0:00:16]} Rd8 {[%emt 0:00:57]} 37. Bb2 {[%emt 0:01:06]} a5 {[%emt 0:03:49]} 38. Rd1 {[%emt 0:00:50]} Rde8 {[%emt 0:01:00]} 39. Rxh4 {[%emt 0:01:20]} R8e3+ {[%emt 0:00:40]} 40. Kf4 {[%emt 0:00:07]} Rxb2 {[%emt 0:02:16]} 0-1